{"text_format":"1","workbook":"xlsx","n_sheets":1,"sheets":["2022"],"not_rendered":{"charts":0,"images":7,"macros":1,"external_links":1,"defined_names":5,"comments":0,"pivot_tables":0},"unopened":[],"bounds":{"document_bytes":16777216,"sheet_cells":100000,"rows_first":2000,"rows_last":500,"rows_between":2000,"halvings":0,"cell_chars":16384,"cell_head_chars":4096},"cells_cut":0,"cells_raw":0,"read":"whole","date_system":"1900"}

{"sheet":"2022","index":0,"n_rows":36,"n_cols":8,"rows_kept":36,"cut":false,"hidden":false,"merged":[[2,4,2,6],[27,0,27,1],[22,0,24,1]]}
[]
[]
[]
[]
["Señores.-"]
["OCEAN FOODS"]
[]
[]
["Por medio de la presente nos es grato saludarlos y a la vez enviarles la mejor cotizacion de los productos solicitados"]
[]
["CODIGO","DESCRIPCION DEL PRODUCTO","MARCA","IMAGEN Y COLOR REFERENCIAL","PRECIO CORPORATIVO INCLUYE IGV","PRECIOS CORPORATIVO SIN. IGV","DISPONIBLE","PRECIO  TOTAL    SIN  IGV"]
["COC 400","Cocina de pie Imaco 4 quemadores 50CM 400 Gris","IMACO",{"$f":"IFERROR(HYPERLINK(VLOOKUP(A12,[1]!BD_informacion,6,FALSE)),\"\")","v":""},499,{"$f":"IFERROR(E12/1.18,\"\")","v":422.88135593220341},9,{"$f":"IFERROR(F12*G12,\"\")","v":3805.9322033898306}]
[null,{"$f":"IFERROR(VLOOKUP(A13,[1]!BD_informacion,7,FALSE),\"\")","v":""},{"$f":"IFERROR(VLOOKUP(A13,[1]!BD_informacion,3,FALSE),\"\")","v":""},{"$f":"IFERROR(HYPERLINK(VLOOKUP(A13,[1]!BD_informacion,6,FALSE)),\"\")","v":""},{"$f":"IFERROR(VLOOKUP(A13,[1]!BD_informacion,5,FALSE),\"\")","v":""},"",null,""]
[null,{"$f":"IFERROR(VLOOKUP(A14,[1]!BD_informacion,7,FALSE),\"\")","v":""},{"$f":"IFERROR(VLOOKUP(A14,[1]!BD_informacion,3,FALSE),\"\")","v":""},{"$f":"IFERROR(HYPERLINK(VLOOKUP(A14,[1]!BD_informacion,6,FALSE)),\"\")","v":""},{"$f":"IFERROR(VLOOKUP(A14,[1]!BD_informacion,5,FALSE),\"\")","v":""},"",null,""]
[null,{"$f":"IFERROR(VLOOKUP(A15,[1]!BD_informacion,7,FALSE),\"\")","v":""},{"$f":"IFERROR(VLOOKUP(A15,[1]!BD_informacion,3,FALSE),\"\")","v":""},{"$f":"IFERROR(HYPERLINK(VLOOKUP(A15,[1]!BD_informacion,6,FALSE)),\"\")","v":""},{"$f":"IFERROR(VLOOKUP(A15,[1]!BD_informacion,5,FALSE),\"\")","v":""},"",null,""]
[null,{"$f":"IFERROR(VLOOKUP(A16,[1]!BD_informacion,7,FALSE),\"\")","v":""},{"$f":"IFERROR(VLOOKUP(A16,[1]!BD_informacion,3,FALSE),\"\")","v":""},{"$f":"IFERROR(HYPERLINK(VLOOKUP(A16,[1]!BD_informacion,6,FALSE)),\"\")","v":""},{"$f":"IFERROR(VLOOKUP(A16,[1]!BD_informacion,5,FALSE),\"\")","v":""},{"$f":"IFERROR(E16/1.18,\"\")","v":""},null,""]
[null,{"$f":"IFERROR(VLOOKUP(A17,[1]!BD_informacion,7,FALSE),\"\")","v":""},{"$f":"IFERROR(VLOOKUP(A17,[1]!BD_informacion,3,FALSE),\"\")","v":""},{"$f":"IFERROR(HYPERLINK(VLOOKUP(A17,[1]!BD_informacion,6,FALSE)),\"\")","v":""},{"$f":"IFERROR(VLOOKUP(A17,[1]!BD_informacion,5,FALSE),\"\")","v":""},"",null,""]
[null,{"$f":"IFERROR(VLOOKUP(A18,[1]!BD_informacion,7,FALSE),\"\")","v":""},{"$f":"IFERROR(VLOOKUP(A18,[1]!BD_informacion,3,FALSE),\"\")","v":""},{"$f":"IFERROR(HYPERLINK(VLOOKUP(A18,[1]!BD_informacion,6,FALSE)),\"\")","v":""},{"$f":"IFERROR(VLOOKUP(A18,[1]!BD_informacion,5,FALSE),\"\")","v":""},"",null,{"$f":"IF(SUM(H12:H17)>0,SUM(H12:H17)*1.18,\"\")","v":4491}]
[null,{"$f":"IFERROR(VLOOKUP(A19,[1]!BD_informacion,7,FALSE),\"\")","v":""},{"$f":"IFERROR(VLOOKUP(A19,[1]!BD_informacion,3,FALSE),\"\")","v":""},{"$f":"IFERROR(HYPERLINK(VLOOKUP(A19,[1]!BD_informacion,6,FALSE)),\"\")","v":""},{"$f":"IFERROR(VLOOKUP(A19,[1]!BD_informacion,5,FALSE),\"\")","v":""},"",null,{"$f":"IFERROR(F19*G19,\"\")","v":""}]
[null,{"$f":"IFERROR(VLOOKUP(A20,[1]!BD_informacion,7,FALSE),\"\")","v":""},{"$f":"IFERROR(VLOOKUP(A20,[1]!BD_informacion,3,FALSE),\"\")","v":""},{"$f":"IFERROR(HYPERLINK(VLOOKUP(A20,[1]!BD_informacion,6,FALSE)),\"\")","v":""},{"$f":"IFERROR(VLOOKUP(A20,[1]!BD_informacion,5,FALSE),\"\")","v":""},{"$f":"IFERROR(E20/1.18,\"\")","v":""},null,{"$f":"IFERROR(F20*G20,\"\")","v":""}]
["* Vigencia de precios hasta el día:"]
["* Disponibilidad sujeta a stock."]
["* El precio incluye envío hasta 2 puntos distintos en lima metropolitana o recojo en tienda a nivel nacional sin costo alguno. en caso de necesitarte los productos en un punto final en provincia, se cotizará flete aparte. "]
[]
[]
["* Podemos trabajar con línea de crédito (Previa evaluación de finanzas) o al contado."]
[]
["BCP                                                       305-0079850-0-72\nBBVA                                                    0011-0910-75-0100087844\nINTERBANK                                        700-0002697527\nSCOTIABANK                                     000-1493345\nCCI BCP                                                002-305-000079850072-14"]
["PAGO AL CREDITO O CONTADO"]
["VIGENCIA DE LA COTIZACION 5 DÍAS"]
[]
["Enviar sustento de pago de facturas al crédito al buzón:","agomezr@lacuracao.com.pe"]
[]
["ANDREA GOMEZ"]
["ASESOR DE VENTA EMPRESAS\nE INSTITUCIONAL"]
[997520890]